fUST/lending_fUST_20260128
["ID","MTS","AMOUNT","RATE_DAILY","PERIOD"]
[403772686,1769532640810,-500.0,0.00013698,2]
[403772687,1769532640819,-500.0,0.00013698,2]
[403772688,1769532640828,-500.0,0.00013698,2]
[403772689,1769532640837,-500.0,0.00013698,2]
[403772690,1769532640847,-500.0,0.00013698,2]
[403772691,1769532640856,-500.0,0.00013698,2]
[403772692,1769532640865,-500.0,0.00013698,2]
[403772693,1769532640874,-500.0,0.00013698,2]
[403772694,1769532640884,-1000.0,0.00013698,2]
[403772695,1769532640897,-580.78992406,0.00013698,2]
[403772696,1769532640907,-515.45788341,0.00013698,2]
[403772697,1769532640917,-233.0086467,0.00013699,2]
[403772698,1769532640927,-160.26500187,0.00013699,2]
[403772699,1769532640937,-500.0,0.00013699,2]
[403772700,1769532640946,-500.0,0.00013699,2]
[403772701,1769532640956,-500.0,0.00013699,2]
[403772702,1769532640966,-500.0,0.00013699,2]
[403772703,1769532640977,-160.98586548,0.00013699,2]
[403772704,1769532640987,-500.0,0.00013699,2]
[403772705,1769532640997,-500.0,0.00013699,2]
[403772706,1769532641006,-507.6640978,0.00013699,2]
[403772707,1769532641015,-160.67610577,0.00013699,2]
[403772708,1769532641024,-500.0,0.00013699,2]
[403772709,1769532641034,-500.0,0.00013699,2]
[403772710,1769532641043,-500.0,0.00013699,2]
[403772711,1769532641054,-500.0,0.00013699,2]
[403772712,1769532641063,-500.0,0.00013699,2]
[403772713,1769532641073,-500.0,0.00013699,2]
[403772714,1769532641082,-500.65001385,0.00013699,2]
[403772715,1769532641091,-500.0,0.00013699,2]
[403772716,1769532641101,-302.32459409,0.00013699,2]
[403772717,1769532641110,-462.16420988,0.00013699,2]
[403772718,1769532641120,-612.89276168,0.00013699,2]
[403772719,1769532641130,-158.80345848,0.00013699,2]
[403772720,1769532641140,-500.81049976,0.00013699,2]
[403772721,1769532641149,-160.25817065,0.00013699,2]
[403772722,1769532641159,-567.35253141,0.00013699,2]
[403772723,1769532641168,-500.0,0.00013699,2]
[403772724,1769532641177,-500.51551222,0.00013699,2]
[403772725,1769532641186,-500.0,0.00013699,2]
[403772726,1769532641195,-500.69178235,0.00013699,2]
[403772727,1769532641204,-500.0,0.00013699,2]
[403772728,1769532641214,-500.0,0.00013699,2]
[403772729,1769532641224,-500.0,0.00013699,2]
[403772730,1769532641233,-500.0,0.00013699,2]
[403772731,1769532641244,-500.0,0.00013699,2]
[403772732,1769532641253,-500.2910062,0.00013699,2]
[403772733,1769532641263,-500.0,0.00013699,2]
[403772734,1769532641271,-400.38622524,0.00013699,2]
[403772735,1769532641281,-500.0,0.00013699,2]
[403772736,1769532641290,-500.0,0.00013699,2]
[403772737,1769532641300,-500.0,0.00013699,2]
[403772738,1769532641310,-500.0,0.00013699,2]
[403772739,1769532641319,-158.1763277,0.00013699,2]
[403772740,1769532641329,-500.0,0.00013699,2]
[403772741,1769532641339,-500.0,0.00013699,2]
[403772742,1769532641350,-500.0,0.00013699,2]
[403772743,1769532641359,-220.8942339,0.00013699,2]
[403772744,1769532641369,-507.15850376,0.00013699,2]
[403772745,1769532641378,-500.6948387,0.00013699,2]
[403772746,1769532641387,-500.74038109,0.00013699,2]
[403772747,1769532641398,-500.2256561,0.00013699,2]
[403772748,1769532641407,-500.0,0.00013699,2]
[403772749,1769532641416,-158.03248936,0.00013699,2]
[403772750,1769532641425,-500.0,0.00013699,2]
[403772751,1769532641434,-500.0,0.00013699,2]
[403772752,1769532641443,-194.72932748,0.00013699,2]
[403772753,1769532641452,-500.0,0.00013699,2]
[403772754,1769532641461,-500.0,0.00013699,2]
[403772755,1769532641469,-500.0,0.00013699,2]
[403772756,1769532641479,-500.0,0.00013699,2]
[403772757,1769532641488,-158.38045043,0.00013699,2]
[403772758,1769532641497,-500.0,0.00013699,2]
[403772759,1769532641507,-165.58700471,0.00013699,2]
[403772760,1769532641516,-299.9295039,0.00013699,2]
[403772761,1769532641525,-500.24926867,0.00013699,2]
[403772762,1769532641535,-500.56709487,0.00013699,2]
[403772763,1769532641544,-502.14185001,0.00013699,2]
[403772764,1769532641554,-501.93006265,0.00013699,2]
[403772765,1769532641563,-526.45505483,0.00013699,2]
[403772766,1769532641573,-500.0,0.00013699,2]
[403772767,1769532641583,-500.0,0.00013699,2]
[403772768,1769532641592,-500.0,0.00013699,2]
[403772769,1769532641602,-500.0,0.00013699,2]
[403772770,1769532641611,-301.32592677,0.00013699,2]
[403772771,1769532641620,-500.74660917,0.00013699,2]
[403772772,1769532641630,-536.5376944,0.00013699,2]
[403772773,1769532641639,-152.58064698,0.00013699,2]
[403772774,1769532641648,-525.37478737,0.00013699,2]
[403772775,1769532641658,-500.36944659,0.00013699,2]
[403772776,1769532641667,-173.92029318,0.00013699,2]
[403772777,1769532641676,-500.0,0.00013699,2]
[403772778,1769532641686,-526.86363123,0.00013699,2]
[403772779,1769532641695,-164.19123008,0.00013699,2]
[403772780,1769532641705,-500.0,0.00013699,2]
[403772781,1769532641714,-160.20285304,0.00013699,2]
[403772782,1769532641723,-308.60459309,0.00013699,2]
[403772783,1769532641732,-500.0,0.00013699,2]
[403772784,1769532641741,-500.0,0.00013699,2]
[403772785,1769532641750,-500.0,0.00013699,2]
[403772786,1769532641759,-500.33960277,0.00013699,2]
[403772787,1769532641768,-158.90561139,0.00013699,2]
[403772788,1769532641778,-500.0,0.00013699,2]
[403772789,1769532641787,-500.3335731,0.00013699,2]
[403772790,1769532641796,-500.0,0.00013699,2]
[403772791,1769532641807,-500.0,0.00013699,2]
[403772792,1769532641817,-500.0,0.00013699,2]
[403772793,1769532641826,-500.0,0.00013699,2]
[403772794,1769532641836,-500.71917519,0.00013699,2]
[403772795,1769532641845,-500.18246026,0.00013699,2]
[403772796,1769532641854,-500.0,0.00013699,2]
[403772797,1769532641863,-500.0,0.00013699,2]
[403772798,1769532641873,-638.73037181,0.00013699,2]
[403772799,1769532641882,-500.0,0.00013699,2]
[403772800,1769532641892,-500.0,0.00013699,2]
[403772801,1769532641904,-500.0,0.00013699,2]
[403772802,1769532641914,-500.0,0.00013699,2]
[403772803,1769532641923,-500.0,0.00013699,2]
[403772804,1769532641933,-151.0,0.000137,2]
[403772805,1769532641942,-734.39,0.00013711,2]
[403772806,1769532641951,-151.0,0.000138,2]
[403772807,1769532641961,-500.0,0.00013802,2]
[403772808,1769532641973,-500.0,0.00013802,2]
[403772809,1769532641982,-1000.0,0.00013821,2]
[403772810,1769532641994,-1000.0,0.00013821,2]
[403772811,1769532642003,-1000.0,0.00013821,2]
[403772812,1769532642014,-1000.0,0.00013821,2]
[403772813,1769532642023,-1018.52236368,0.00013821,2]
[403772814,1769532642034,-1000.0,0.00013821,2]
[403772815,1769532642043,-500.0,0.00013821,2]
[403772816,1769532642053,-1000.0,0.00013821,2]
[403772817,1769532642063,-500.0,0.00013821,2]
[403772818,1769532642072,-1000.0,0.00013821,2]
[403772819,1769532642081,-181.63235792,0.00013821,2]
[403772820,1769532642091,-1000.0,0.00013821,2]
[403772821,1769532642100,-1000.0,0.00013821,2]
[403772822,1769532642110,-1000.0,0.00013821,2]
[403772823,1769532642119,-1000.0,0.00013821,2]
[403772824,1769532642128,-505.3906654,0.00013821,2]
[403772825,1769532642138,-1002.68815338,0.00013821,2]
[403772826,1769532642147,-1000.0,0.00013821,2]
[403772827,1769532642155,-1000.0,0.00013821,2]
[403772828,1769532642164,-1000.0,0.00013821,2]
[403772829,1769532642174,-1000.0,0.00013821,2]
[403772830,1769532642182,-1000.0,0.00013821,2]
[403772831,1769532642191,-1000.0,0.00013821,2]
[403772832,1769532642201,-1000.0,0.00013821,2]
[403772833,1769532642210,-1000.0,0.00013821,2]
[403772834,1769532642219,-500.60565032,0.00013821,2]
[403772835,1769532642229,-500.0,0.00013821,2]
[403772836,1769532642238,-1000.0,0.00013821,2]
[403772837,1769532642248,-1000.0,0.00013821,2]
[403772838,1769532642257,-1122.96707627,0.00013821,2]
[403772839,1769532642266,-1000.0,0.00013821,2]
[403772841,1769532642306,-1000.0,0.00013821,2]
[403772842,1769532642315,-1000.0,0.00013821,2]
[403772844,1769532642324,-1000.0,0.00013821,2]
[403772845,1769532642333,-1000.0,0.00013821,2]
[403772847,1769532642342,-1000.0,0.00013821,2]
[403772849,1769532642352,-1000.0,0.00013821,2]
[403772851,1769532642361,-802.08825533,0.00013821,2]
[403772853,1769532642370,-500.0,0.00013821,2]
[403772855,1769532642380,-1000.0,0.00013821,2]
[403772857,1769532642389,-1000.0,0.00013821,2]
[403772858,1769532642398,-1000.0,0.00013821,2]
[403772860,1769532642407,-1000.0,0.00013821,2]
[403772862,1769532642417,-1000.0,0.00013821,2]
[403772864,1769532642426,-1000.0,0.00013821,2]
[403772865,1769532642435,-475.76262477,0.00013924,2]
[403772867,1769532642444,-51342.99260131,0.00014006,2]
[403772869,1769532642453,-151.0,0.000141,2]
[403772871,1769532642462,-734.39,0.00014126,2]
[403772873,1769532642471,-600.0,0.00014221,2]
[403772875,1769532642480,-1000.0,0.00014247,2]
[403772877,1769532642490,-844.14797869,0.00014247,2]
[403772879,1769532642499,-1000.0,0.00014247,2]
[403772881,1769532642508,-1000.0,0.00014247,2]
[403772883,1769532642518,-348.473489,0.00014247,2]
[403772885,1769532642527,-501.06198753,0.00014247,2]
[403772887,1769532642536,-610.42597811,0.00014247,2]
[403772889,1769532642545,-474.23438198,0.00014247,2]
[403772892,1769532642555,-1000.0,0.00014247,2]
[403772893,1769532642564,-1001.21829847,0.00014247,2]
[403772895,1769532642573,-1000.0,0.00014247,2]
[403772897,1769532642583,-1000.0,0.00014247,2]
[403772899,1769532642591,-1000.0,0.00014247,2]
[403772901,1769532642601,-1000.0,0.00014247,2]
[403772903,1769532642609,-1117.40899688,0.00014247,2]
[403772905,1769532642618,-603.02448987,0.00014247,2]
[403772907,1769532642627,-1000.0,0.00014247,2]
[403772909,1769532642636,-1000.0,0.00014247,2]
[403772912,1769532642647,-1000.89619199,0.00014247,2]
[403772915,1769532642657,-1000.0,0.00014247,2]
[403772917,1769532642666,-1000.0,0.00014247,2]
[403772919,1769532642675,-1000.0,0.00014247,2]
[403772921,1769532642684,-1000.0,0.00014247,2]
[403772923,1769532642693,-1000.0,0.00014247,2]
[403772925,1769532642703,-498.54806363,0.00014247,2]
[403772927,1769532642712,-158.68078088,0.00014247,2]
[403772930,1769532642722,-1000.0,0.00014247,2]
[403772932,1769532642731,-1000.0,0.00014247,2]
[403772934,1769532642740,-1000.0,0.00014247,2]
[403772936,1769532642749,-500.0,0.00014368,2]
[403772938,1769532642759,-822.85276011,0.00014368,2]
[403772940,1769532642767,-500.0,0.00014368,2]
[403772941,1769532642779,-1000.0,0.00014368,2]
[403772943,1769532642788,-1500.0,0.00014368,2]
[403772946,1769532642799,-1500.0,0.00014368,2]
[403772947,1769532642809,-1500.0,0.00014368,2]
[403772949,1769532642818,-1500.0,0.00014368,2]
[403772952,1769532642827,-1500.0,0.00014368,2]
[403772955,1769532642837,-1500.0,0.00014368,2]
[403772958,1769532642848,-1000.0,0.00014368,2]
[403772960,1769532642857,-1500.0,0.00014368,2]
[403772962,1769532642866,-619.57314068,0.00014368,2]
[403772964,1769532642875,-1500.0,0.00014368,2]
[403772967,1769532642884,-1000.0,0.00014368,2]
[403772970,1769532642898,-488.50652582,0.00014368,2]
[403772972,1769532642906,-1500.0,0.00014368,2]
[403772974,1769532642915,-1500.0,0.00014368,2]
[403772976,1769532642924,-1500.0,0.00014368,2]
[403772979,1769532642935,-1500.0,0.00014368,2]
[403772981,1769532642944,-1476.7197482,0.00014368,2]
[403772983,1769532642953,-462.44559537,0.00014368,2]
[403772986,1769532642962,-1500.0,0.00014368,2]
[403772990,1769532642972,-500.0,0.00014368,2]
[403772994,1769532642982,-500.0,0.00014368,2]
[403772997,1769532642991,-1500.0,0.00014368,2]
[403773000,1769532643000,-226.04161405,0.00014368,2]
[403773004,1769532643009,-1500.0,0.00014368,2]
[403773006,1769532643019,-1500.0,0.00014368,2]
[403773009,1769532643029,-1500.0,0.00014368,2]
[403773012,1769532643037,-587.0,0.00014372,2]
[403773014,1769532643047,-155.0,0.00014598,2]
[403773016,1769532643058,-900.0,0.00014768,2]
[403773018,1769532643067,-1000.0,0.00014795,2]
[403773021,1769532643076,-175.70742984,0.00014795,2]
[403773024,1769532643085,-1500.0,0.00014795,2]
[403773026,1769532643094,-1500.0,0.00014795,2]
[403773028,1769532643103,-500.0,0.00014795,2]
[403773030,1769532643112,-1500.0,0.00014795,2]
[403773032,1769532643121,-1500.0,0.00014795,2]
[403773034,1769532643131,-864.0,0.0001484,2]
[403773036,1769532643140,-1000.0,0.00014916,2]
[403773038,1769532643149,-2000.0,0.00014916,2]
[403773040,1769532643158,-464.54701019,0.00014916,2]
[403773042,1769532643168,-1212.6308883,0.00014916,2]
[403773044,1769532643178,-1000.0,0.00014916,2]
[403773046,1769532643187,-423.7392581,0.00014916,2]
[403773047,1769532643196,-2000.0,0.00014916,2]
[403773049,1769532643205,-2000.0,0.00014916,2]
[403773051,1769532643214,-500.0,0.00014916,2]
[403773053,1769532643223,-500.0,0.00014916,2]
[403773055,1769532643233,-1000.0,0.00014916,2]
[403773058,1769532643242,-504.79261489,0.00014916,2]
[403773059,1769532643251,-1000.0,0.00014916,2]
[403773062,1769532643261,-2000.0,0.00014916,2]
[403773063,1769532643270,-2000.0,0.00014916,2]
[403773065,1769532643279,-2000.0,0.00014916,2]
[403773067,1769532643288,-2674.60743027,0.00015175,2]
[403773069,1769532643297,-201.93286099,0.00015175,2]
[403773071,1769532643307,-209.40437684,0.00015175,2]
[403773073,1769532643317,-30000.0,0.00015175,2]
[403773075,1769532643326,-217.15233878,0.00015175,2]
[403773077,1769532643336,-225.18697532,0.00015175,2]
[403773079,1769532643345,-233.51889341,0.00015175,2]
[403773081,1769532643355,-242.15909246,0.00015175,2]
[403773083,1769532643364,-251.11897888,0.00015175,2]
[403773085,1769532643373,-260.4103811,0.00015175,2]
[403773087,1769532643382,-270.0455652,0.00015175,2]
[403773089,1769532643392,-280.03725112,0.00015175,2]
[403773091,1769532643402,-290.39862941,0.00015175,2]
[403773094,1769532643411,-301.1433787,0.00015175,2]
[403773096,1769532643420,-553.64373807,0.00015175,2]
[403773097,1769532643431,-9172.82870597,0.00015191,2]
[403773100,1769532643440,-1200.0,0.00015316,2]
[403773102,1769532643450,-10000.01,0.00015342,2]
[403773103,1769532643459,-1500.0,0.00015342,2]
[403773105,1769532643469,-1000.0,0.00015464,2]
[403773107,1769532643478,-1500.0,0.00015464,2]
[403773109,1769532643488,-1500.0,0.00015464,2]
[403773111,1769532643497,-1500.0,0.00015464,2]
[403773113,1769532643507,-1000.0,0.00015464,2]
[403773115,1769532643516,-1500.0,0.00015464,2]
[403773117,1769532643526,-2773.56790519,0.00015723,2]
[403773119,1769532643535,-31110.0,0.00015723,2]
[403773121,1769532643544,-574.12855637,0.00015723,2]
[403773123,1769532643553,-823.0,0.00015778,2]
[403773125,1769532643563,-548.33658448,0.00015924,2]
[403773127,1769532643572,-371.82190875,0.00016224,2]
[403773129,1769532643582,-669.27943575,0.00016224,2]
[403773131,1769532643591,-305.35494407,0.00016224,2]
[403773133,1769532643600,-549.63889932,0.00016224,2]
[403773135,1769532643610,-1189.83010799,0.00016224,2]
[403773137,1769532643619,-977.13582102,0.00016224,2]
[403773140,1769532643628,-2876.18991768,0.00016271,2]
[403773142,1769532643638,-2532.50382044,0.00016271,2]
[403773144,1769532643647,-595.37131296,0.00016271,2]
[403773146,1769532643656,-1000.0,0.00016324,2]
[403773148,1769532643665,-200.0,0.00016438,2]
[403773150,1769532643674,-151.0,0.00016438,2]
[403773152,1769532643683,-151.0,0.00016438,2]
[403773154,1769532643692,-151.0,0.00016438,2]
[403773156,1769532643701,-151.782866,0.00016438,2]
[403773158,1769532643710,-2982.60894464,0.00016819,2]
[403773160,1769532643719,-617.40005154,0.00016819,2]
[403773162,1769532643728,-1152.0,0.00017322,2]
[403773164,1769532643738,-284.24641175,0.00017367,2]
[403773166,1769532643747,-339.44301533,0.00017766,2]
[403773168,1769532643756,-28183.8760119,0.00017828,2]
[403773170,1769532643765,-620.91054419,0.00017924,2]
[403773172,1769532643774,-1000.0,0.00017956,2]
[403773174,1769532643783,-244.0,0.00017956,2]
[403773176,1769532643791,-734.39,0.00017999,2]
[403773178,1769532643801,-734.39,0.00017999,2]
[403773179,1769532643811,-36434.67073863,0.00018,2]
[403773182,1769532643820,-729.0,0.000184,2]
[403773184,1769532643830,-729.0,0.000184,2]
[403773186,1769532643839,-729.0,0.000184,2]
[403773188,1769532643848,-199.080571,0.000184,7]
[403773189,1769532643857,-9172.82870597,0.00018481,2]
[403773191,1769532643866,-190.842461,0.00018493,2]
[403773193,1769532643875,-734.39,0.00018581,2]
[403773195,1769532643884,-670.086,0.00018582,2]
[403773197,1769532643895,-1372.504,0.00018582,2]
[403773199,1769532643905,-179.0,0.00018582,2]
[403773201,1769532643914,-331.0,0.000187,2]
[403773203,1769532643923,-1102.68872,0.000187,7]
[403773205,1769532643933,-729.0,0.0001872,2]
[403773207,1769532643942,-729.0,0.0001872,2]
[403773209,1769532643954,-168.0,0.00018776,2]
[403773211,1769532643964,-168.0,0.00018792,2]
[403773213,1769532643976,-168.0,0.00018884,2]
[403773215,1769532643986,-184.556563,0.00018884,7]
[403773217,1769532643995,-303.10001603,0.000189,2]
[403773219,1769532644004,-500.0,0.00018904,2]
[403773221,1769532644013,-150.0,0.00018904,2]
[403773223,1769532644022,-150.0,0.00018904,2]
[403773225,1769532644031,-150.0,0.00018904,2]
[403773227,1769532644040,-500.0,0.00018904,2]
[403773229,1769532644050,-500.0,0.00018904,2]
[403773231,1769532644060,-150.0,0.00018904,2]
[403773233,1769532644070,-150.0,0.00018904,2]
[403773235,1769532644079,-500.0,0.00018904,2]
[403773237,1769532644088,-734.39,0.00018999,2]
[403773239,1769532644097,-734.39,0.00018999,2]
[403773241,1769532644107,-734.39,0.00018999,2]
[403773244,1769532644124,-734.39,0.00018999,2]
[403773247,1769532644136,-734.39,0.00018999,2]
[403773249,1769532644146,-734.39,0.00018999,2]
[403773251,1769532644155,-734.39,0.00018999,2]
[403773253,1769532644164,-734.39,0.00018999,2]
[403773255,1769532644173,-734.39,0.00018999,2]
[403773257,1769532644183,-734.39,0.00018999,2]
[403773259,1769532644192,-734.39,0.00018999,2]
[403773261,1769532644201,-734.39,0.00018999,2]
[403773263,1769532644210,-734.39,0.00018999,2]
[403773265,1769532644220,-734.39,0.00018999,2]
[403773267,1769532644229,-734.39,0.00018999,2]
[403773269,1769532644239,-734.39,0.00018999,2]
[403773271,1769532644249,-734.39,0.00018999,2]
[403773273,1769532644259,-734.39,0.00018999,2]
[403773275,1769532644268,-734.56895827,0.00018999,2]
[403773277,1769532644277,-3869.320571,0.00018999,7]
[403773279,1769532644287,-160.0,0.00018999,2]
[403773281,1769532644297,-200.0,0.00018999,2]
[403773283,1769532644307,-200.0,0.00018999,2]
[403773285,1769532644317,-1393.564003,0.00018999,7]
[403773287,1769532644327,-274916.4416382,0.00019,2]
[403773290,1769532644337,-218160.2517503,0.00019,2]
[403773292,1769532644348,-30582.167413,0.00019,7]
[403773294,1769532644357,-54629.84391304,0.00019,2]
[403773296,1769532644367,-151.0,0.00019,2]
[403773298,1769532644376,-1674.06477,0.00019,2]
[403773300,1769532644388,-664.0,0.00019,2]
[403773302,1769532644405,-168.0,0.00019017,2]
[403773304,1769532644428,-10117.295598,0.00019017,7]
[403773306,1769532644439,-173.0,0.00019017,2]
[403773307,1769532644449,-729.0,0.0001904,2]
[403773310,1769532644459,-729.0,0.0001904,2]
[403773312,1769532644468,-729.0,0.0001904,2]
[403773314,1769532644478,-552.97588223,0.00019041,2]
[403773316,1769532644487,-150.0,0.00019041,2]
[403773318,1769532644496,-200.0,0.00019041,2]
[403773320,1769532644505,-150.0,0.00019041,2]
[403773322,1769532644516,-500.0,0.00019041,2]
[403773324,1769532644525,-500.0,0.00019041,2]
[403773326,1769532644535,-150.0,0.00019041,2]
[403773328,1769532644545,-206.36046447,0.00019041,2]
[403773330,1769532644555,-500.0,0.00019041,2]
[403773332,1769532644565,-233.711212,0.00019085,7]
[403773334,1769532644575,-967.911049,0.00019089,7]
[403773336,1769532644593,-303.10001603,0.00019089,2]
[403773338,1769532644612,-151.0,0.000191,2]
[403773340,1769532644633,-151.0,0.000191,2]
[403773342,1769532644642,-160.0,0.00019177,2]
[403773344,1769532644652,-200.0,0.00019177,2]
[403773346,1769532644664,-150.0,0.00019178,2]
[403773348,1769532644675,-500.0,0.00019178,2]
[403773350,1769532644689,-500.0,0.00019178,2]
[403773352,1769532644699,-150.0,0.00019178,2]
[403773354,1769532644712,-500.0,0.00019178,2]
[403773356,1769532644732,-507.9828,0.00019178,2]
[403773357,1769532644743,-507.9828,0.00019178,2]
[403773360,1769532644757,-507.9828,0.00019178,2]
[403773362,1769532644770,-507.9828,0.00019178,2]
[403773364,1769532644784,-507.98,0.00019178,2]
[403773366,1769532644796,-507.9828,0.00019178,2]
[403773368,1769532644808,-507.9828,0.00019178,2]
[403773370,1769532644822,-151.0,0.00019178,2]
[403773372,1769532644833,-151.0,0.00019178,2]
[403773374,1769532644846,-151.0,0.00019178,2]
[403773377,1769532644859,-151.0,0.00019178,2]
[403773379,1769532644869,-151.0,0.00019178,2]
[403773381,1769532644880,-151.0,0.00019178,2]
[403773383,1769532644896,-151.0,0.00019178,2]
[403773385,1769532644906,-151.0,0.00019178,2]
[403773387,1769532644916,-151.0,0.00019178,2]
[403773389,1769532644927,-151.0,0.00019178,2]
[403773391,1769532644937,-151.0,0.00019178,2]
[403773393,1769532644947,-151.0,0.00019178,2]
[403773395,1769532644957,-151.0,0.00019178,2]
[403773397,1769532644969,-151.0,0.00019178,2]
[403773399,1769532644979,-151.0,0.00019178,2]
[403773401,1769532644989,-229.808374,0.00019178,2]
[403773403,1769532645001,-151.0,0.00019178,2]
[403773405,1769532645013,-151.0,0.00019178,2]
[403773407,1769532645024,-151.0,0.00019178,2]
[403773410,1769532645035,-151.0,0.00019178,2]
[403773412,1769532645045,-151.0,0.00019178,2]
[403773414,1769532645056,-151.0,0.00019178,2]
[403773416,1769532645066,-151.0,0.00019178,2]
[403773418,1769532645078,-151.0,0.00019178,2]
[403773420,1769532645087,-151.0,0.00019178,2]
[403773422,1769532645097,-151.0,0.00019178,2]
[403773424,1769532645106,-151.0,0.00019178,2]
[403773426,1769532645116,-151.0,0.00019178,2]
[403773428,1769532645125,-151.0,0.00019178,2]
[403773430,1769532645135,-151.0,0.00019178,2]
[403773432,1769532645144,-151.0,0.00019178,2]
[403773434,1769532645154,-152.972032,0.00019178,2]
[403773437,1769532645163,-151.0,0.00019178,2]
[403773439,1769532645174,-151.0,0.00019178,2]
[403773441,1769532645183,-151.0,0.00019178,2]
[403773443,1769532645193,-217.941002,0.00019178,2]
[403773445,1769532645202,-151.0,0.00019178,2]
[403773447,1769532645211,-151.0,0.00019178,2]
[403773449,1769532645221,-153.402217,0.00019178,2]
[403773451,1769532645231,-151.33869,0.00019178,2]
[403773453,1769532645240,-151.0,0.00019178,2]
[403773455,1769532645250,-151.69617,0.00019178,2]
[403773457,1769532645260,-151.0,0.00019178,2]
[403773460,1769532645270,-151.0,0.00019178,2]
[403773462,1769532645279,-151.0,0.00019178,2]
[403773464,1769532645289,-196.085023,0.00019178,2]
[403773466,1769532645298,-151.0,0.00019178,2]
[403773468,1769532645308,-291.914687,0.00019178,2]
[403773470,1769532645317,-180.027684,0.00019178,2]
[403773472,1769532645327,-180.027684,0.00019178,2]
[403773474,1769532645336,-180.027684,0.00019178,2]
[403773476,1769532645346,-180.027684,0.00019178,2]
[403773478,1769532645355,-180.027684,0.00019178,2]
[403773480,1769532645365,-180.027684,0.00019178,2]
[403773482,1769532645374,-180.027684,0.00019178,2]
[403773484,1769532645384,-228.790219,0.00019178,2]
[403773487,1769532645395,-180.027684,0.00019178,2]
[403773489,1769532645404,-228.790219,0.00019178,2]
[403773491,1769532645420,-180.027684,0.00019178,2]
[403773493,1769532645430,-228.790219,0.00019178,2]
[403773495,1769532645440,-180.027684,0.00019178,2]
[403773497,1769532645449,-228.790219,0.00019178,2]
[403773499,1769532645459,-180.027684,0.00019178,2]
[403773501,1769532645469,-180.027684,0.00019178,2]
[403773504,1769532645479,-180.027684,0.00019178,2]
[403773506,1769532645489,-180.027684,0.00019178,2]
[403773508,1769532645499,-180.027684,0.00019178,2]
[403773510,1769532645508,-180.027684,0.00019178,2]
[403773512,1769532645518,-180.027684,0.00019178,2]
[403773514,1769532645527,-180.027684,0.00019178,2]
[403773516,1769532645537,-180.027684,0.00019178,2]
[403773518,1769532645547,-180.027686,0.00019178,2]
[403773520,1769532645557,-151.0,0.00019178,2]
[403773522,1769532645566,-151.0,0.00019178,2]
[403773524,1769532645576,-151.0,0.00019178,2]
[403773526,1769532645585,-151.0,0.00019178,2]
[403773528,1769532645595,-151.0,0.00019178,2]
[403773530,1769532645604,-151.0,0.00019178,2]
[403773532,1769532645614,-151.0,0.00019178,2]
[403773534,1769532645624,-228.790219,0.00019178,2]
[403773536,1769532645634,-208.394871,0.00019178,2]
[403773539,1769532645643,-228.790219,0.00019178,2]
[403773542,1769532645652,-228.790219,0.00019178,2]
[403773545,1769532645661,-228.790219,0.00019178,2]
[403773547,1769532645671,-228.790219,0.00019178,2]
[403773550,1769532645680,-228.790219,0.00019178,2]
[403773553,1769532645690,-228.790219,0.00019178,2]
[403773557,1769532645700,-228.790219,0.00019178,2]
[403773560,1769532645710,-228.790219,0.00019178,2]
[403773563,1769532645719,-228.790219,0.00019178,2]
[403773566,1769532645729,-228.790219,0.00019178,2]